fUSD/lending_fUSD_20250109
["ID","MTS","AMOUNT","RATE_DAILY","PERIOD"]
[348358443,1736464253690,-500.0,0.00010388,2]
[348358444,1736464253699,-2079.95,0.00010388,2]
[348358445,1736464253708,-802.81,0.00010388,2]
[348358446,1736464253717,-979.65,0.00010388,2]
[348358447,1736464253727,-500.0,0.00010388,2]
[348358448,1736464253736,-2536.25,0.00010388,2]
[348358449,1736464253745,-1867.01,0.00010388,2]
[348358450,1736464253754,-650.79,0.00010388,2]
[348358451,1736464253763,-607.35,0.00010388,2]
[348358452,1736464253773,-2025.45,0.00010388,2]
[348358453,1736464253784,-3793.75,0.00010388,2]
[348358454,1736464253794,-1584.97,0.00010388,2]
[348358455,1736464253804,-7385.22,0.00010388,2]
[348358456,1736464253813,-500.0,0.00010388,2]
[348358457,1736464253823,-925.08,0.00010388,2]
[348358458,1736464253832,-500.0,0.00010388,2]
[348358459,1736464253841,-619.92,0.00010388,2]
[348358460,1736464253851,-500.0,0.00010388,2]
[348358461,1736464253862,-1428.05,0.00010388,2]
[348358462,1736464253872,-500.0,0.00010388,2]
[348358463,1736464253881,-500.0,0.00010388,2]
[348358464,1736464253891,-500.0,0.00010388,2]
[348358465,1736464253900,-500.0,0.00010388,2]
[348358466,1736464253909,-631.73,0.00010388,2]
[348358467,1736464253919,-1111.88,0.00010388,2]
[348358468,1736464253928,-2376.81,0.00010388,2]
[348358469,1736464253938,-962.16,0.00010388,2]
[348358470,1736464253950,-1011.89,0.00010388,2]
[348358471,1736464253959,-1842.8,0.00010388,2]
[348358472,1736464253969,-809.81,0.00010388,2]
[348358473,1736464253978,-1412.7,0.00010388,2]
[348358474,1736464253989,-500.0,0.00010388,2]
[348358475,1736464253998,-500.0,0.00010388,2]
[348358476,1736464254007,-1113.45,0.00010388,2]
[348358477,1736464254017,-500.0,0.00010389,2]
[348358478,1736464254028,-500.0,0.00010389,2]
[348358479,1736464254038,-492.57,0.00010389,2]
[348358480,1736464254050,-500.0,0.00010389,2]
[348358481,1736464254059,-500.0,0.00010389,2]
[348358482,1736464254068,-500.0,0.00010389,2]
[348358483,1736464254078,-500.0,0.00010389,2]
[348358484,1736464254088,-500.0,0.00010389,2]
[348358485,1736464254098,-500.0,0.00010389,2]
[348358486,1736464254107,-500.0,0.00010389,2]
[348358487,1736464254117,-500.0,0.00010389,2]
[348358488,1736464254126,-500.0,0.00010389,2]
[348358489,1736464254135,-500.0,0.00010389,2]
[348358490,1736464254144,-510.94,0.00010389,2]
[348358491,1736464254153,-500.0,0.00010389,2]
[348358492,1736464254162,-541.38,0.00010389,2]
[348358493,1736464254171,-318.7299232,0.00010389,2]
[348358494,1736464254180,-500.0,0.00010389,2]
[348358495,1736464254190,-500.0,0.00010389,2]
[348358496,1736464254199,-500.0,0.00010389,2]
[348358497,1736464254208,-500.0,0.00010389,2]
[348358498,1736464254217,-500.0,0.00010389,2]
[348358499,1736464254226,-500.0,0.00010389,2]
[348358500,1736464254235,-500.0,0.00010389,2]
[348358501,1736464254245,-620.87,0.00010389,2]
[348358502,1736464254254,-680.81,0.00010389,2]
[348358503,1736464254263,-201.78846693,0.00010389,2]
[348358504,1736464254272,-500.0,0.00010389,2]
[348358505,1736464254282,-500.0,0.00010389,2]
[348358506,1736464254291,-500.0,0.00010389,2]
[348358507,1736464254300,-500.0,0.00010389,2]
[348358508,1736464254310,-500.0,0.00010389,2]
[348358509,1736464254319,-500.0,0.00010389,2]
[348358510,1736464254329,-500.0,0.00010389,2]
[348358511,1736464254338,-166.54,0.00010389,2]
[348358512,1736464254347,-500.0,0.00010389,2]
[348358513,1736464254356,-500.0,0.00010389,2]
[348358514,1736464254365,-500.0,0.00010389,2]
[348358515,1736464254375,-500.0,0.00010389,2]
[348358516,1736464254384,-500.0,0.00010389,2]
[348358517,1736464254393,-500.0,0.00010389,2]
[348358518,1736464254403,-602.72,0.00010389,2]
[348358519,1736464254412,-500.0,0.00010389,2]
[348358520,1736464254421,-172.23118712,0.00010389,2]
[348358521,1736464254430,-500.0,0.00010389,2]
[348358522,1736464254439,-274.26516956,0.00010389,2]
[348358523,1736464254449,-500.0,0.00010389,2]
[348358524,1736464254458,-500.0,0.00010389,2]
[348358525,1736464254467,-500.0,0.00010389,2]
[348358526,1736464254476,-500.0,0.00010389,2]
[348358527,1736464254485,-500.0,0.00010389,2]
[348358528,1736464254494,-500.0,0.00010389,2]
[348358529,1736464254503,-500.0,0.00010389,2]
[348358530,1736464254513,-500.0,0.00010389,2]
[348358531,1736464254521,-500.0,0.00010389,2]
[348358532,1736464254531,-500.0,0.00010389,2]
[348358533,1736464254539,-500.0,0.00010389,2]
[348358534,1736464254548,-500.0,0.00010389,2]
[348358535,1736464254558,-500.0,0.00010389,2]
[348358536,1736464254568,-500.0,0.00010389,2]
[348358537,1736464254577,-500.0,0.00010389,2]
[348358538,1736464254587,-1147.46,0.00010389,2]
[348358539,1736464254596,-1058.12,0.00010389,2]
[348358540,1736464254610,-1273.53,0.00010389,2]
[348358541,1736464254619,-1074.97,0.00010389,2]
[348358542,1736464254629,-2765.79,0.00010389,2]
[348358543,1736464254638,-1599.29,0.00010389,2]
[348358544,1736464254649,-500.0,0.00010389,2]
[348358545,1736464254659,-924.66,0.00010389,2]
[348358546,1736464254668,-1641.51,0.00010389,2]
[348358547,1736464254678,-500.0,0.0001039,2]
[348358548,1736464254687,-500.0,0.0001039,2]
[348358549,1736464254696,-500.0,0.0001039,2]
[348358550,1736464254706,-500.0,0.0001039,2]
[348358551,1736464254715,-292.58587077,0.0001039,2]
[348358552,1736464254724,-500.0,0.0001039,2]
[348358553,1736464254733,-500.0,0.0001039,2]
[348358554,1736464254742,-1094.21,0.0001039,2]
[348358555,1736464254751,-500.0,0.0001039,2]
[348358556,1736464254760,-862.31,0.0001039,2]
[348358557,1736464254769,-500.0,0.0001039,2]
[348358558,1736464254778,-938.93,0.0001039,2]
[348358559,1736464254787,-978.12,0.0001039,2]
[348358560,1736464254796,-611.18,0.0001039,2]
[348358561,1736464254808,-634.46,0.0001039,2]
[348358562,1736464254817,-500.0,0.0001039,2]
[348358563,1736464254827,-500.0,0.0001039,2]
[348358564,1736464254836,-500.0,0.0001039,2]
[348358565,1736464254845,-500.0,0.0001039,2]
[348358566,1736464254854,-500.0,0.0001039,2]
[348358567,1736464254864,-500.0,0.0001039,2]
[348358568,1736464254873,-642.63,0.0001039,2]
[348358569,1736464254883,-500.0,0.0001039,2]
[348358570,1736464254893,-500.0,0.0001039,2]
[348358571,1736464254902,-500.0,0.0001039,2]
[348358572,1736464254912,-1009.39,0.0001039,2]
[348358573,1736464254921,-785.43,0.0001039,2]
[348358574,1736464254930,-310.49,0.0001039,2]
[348358575,1736464254940,-500.0,0.0001039,2]
[348358576,1736464254949,-500.0,0.0001039,2]
[348358577,1736464254958,-500.0,0.0001039,2]
[348358578,1736464254968,-500.0,0.0001039,2]
[348358579,1736464254977,-500.0,0.0001039,2]
[348358580,1736464254986,-500.0,0.0001039,2]
[348358581,1736464254996,-500.0,0.0001039,2]
[348358582,1736464255005,-709.19,0.0001039,2]
[348358583,1736464255014,-293.07896265,0.0001039,2]
[348358584,1736464255023,-233.65,0.0001039,2]
[348358585,1736464255033,-500.0,0.0001039,2]
[348358586,1736464255042,-634.84,0.0001039,2]
[348358587,1736464255051,-500.0,0.0001039,2]
[348358588,1736464255060,-615.34,0.0001039,2]
[348358589,1736464255071,-164.67150598,0.0001039,2]
[348358590,1736464255080,-500.0,0.0001039,2]
[348358591,1736464255091,-954.84,0.0001039,2]
[348358592,1736464255102,-507.76,0.0001039,2]
[348358593,1736464255112,-500.0,0.0001039,2]
[348358594,1736464255122,-1019.59,0.0001039,2]
[348358595,1736464255133,-537.4,0.0001039,2]
[348358596,1736464255143,-558.36,0.0001039,2]
[348358597,1736464255154,-500.0,0.0001039,2]
[348358598,1736464255164,-1233.3,0.0001039,2]
[348358599,1736464255173,-500.0,0.0001039,2]
[348358600,1736464255183,-338.71063934,0.0001039,2]
[348358601,1736464255193,-721.29,0.0001039,2]
[348358602,1736464255203,-500.0,0.0001039,2]
[348358603,1736464255213,-500.0,0.0001039,2]
[348358604,1736464255223,-500.0,0.0001039,2]
[348358605,1736464255234,-500.0,0.0001039,2]
[348358606,1736464255245,-500.0,0.0001039,2]
[348358607,1736464255257,-732.17,0.0001039,2]
[348358608,1736464255268,-500.0,0.0001039,2]
[348358609,1736464255277,-500.0,0.0001039,2]
[348358610,1736464255288,-624.3,0.0001039,2]
[348358611,1736464255298,-1688.27,0.0001039,2]
[348358612,1736464255309,-500.0,0.0001039,2]
[348358613,1736464255318,-1617.92,0.0001039,2]
[348358614,1736464255328,-500.0,0.0001039,2]
[348358615,1736464255338,-199.34,0.0001039,2]
[348358616,1736464255351,-500.0,0.0001039,2]
[348358617,1736464255360,-500.0,0.0001039,2]
[348358618,1736464255370,-910.13,0.0001039,2]
[348358619,1736464255381,-500.0,0.0001039,2]
[348358620,1736464255392,-500.0,0.0001039,2]
[348358621,1736464255402,-500.0,0.0001039,2]
[348358622,1736464255412,-586.16,0.0001039,2]
[348358623,1736464255423,-500.0,0.0001039,2]
[348358624,1736464255433,-775.45,0.0001039,2]
[348358625,1736464255446,-500.0,0.0001039,2]
[348358626,1736464255457,-773.27,0.0001039,2]
[348358627,1736464255467,-500.0,0.0001039,2]
[348358628,1736464255478,-500.0,0.0001039,2]
[348358629,1736464255489,-500.0,0.0001039,2]
[348358630,1736464255499,-501.64,0.0001039,2]
[348358631,1736464255510,-1000.0,0.0001039,2]
[348358632,1736464255521,-783.03,0.0001039,2]
[348358633,1736464255532,-500.0,0.0001039,2]
[348358634,1736464255542,-500.0,0.0001039,2]
[348358635,1736464255552,-569.26279448,0.0001039,2]
[348358636,1736464255726,-266.18720552,0.0001039,2]
[348358637,1736464255755,-4209.22,0.0001039,2]
[348358638,1736464255765,-583.28,0.0001039,2]
[348358639,1736464255775,-956.43,0.0001039,2]
[348358640,1736464255785,-563.03052118,0.0001039,2]
[348358641,1736464255794,-738.09,0.0001039,2]
[348358642,1736464255804,-2876.8,0.0001039,2]
[348358643,1736464255813,-500.0,0.0001039,2]
[348358644,1736464255823,-500.0,0.0001039,2]
[348358645,1736464255832,-726.83,0.0001039,2]
[348358646,1736464255841,-1097.95,0.0001039,2]
[348358647,1736464255850,-1107.12,0.0001039,2]
[348358648,1736464255860,-516.43,0.0001039,2]
[348358649,1736464255869,-2009.4,0.0001039,2]
[348358650,1736464255878,-540.66905199,0.0001039,2]
[348358651,1736464255887,-592.18,0.0001039,2]
[348358652,1736464255897,-500.0,0.0001039,2]
[348358653,1736464255906,-500.0,0.0001039,2]
[348358654,1736464255916,-1086.67,0.0001039,2]
[348358655,1736464255925,-500.0,0.0001039,2]
[348358656,1736464255934,-728.55,0.0001039,2]
[348358657,1736464255943,-503.24,0.0001039,2]
[348358658,1736464255953,-881.94,0.0001039,2]
[348358659,1736464255963,-500.0,0.0001039,2]
[348358660,1736464255972,-3195.85,0.0001039,2]
[348358661,1736464255981,-548.76,0.0001039,2]
[348358662,1736464255991,-500.0,0.0001039,2]
[348358663,1736464256001,-537.86,0.0001039,2]
[348358664,1736464256010,-182.98,0.0001039,2]
[348358665,1736464256021,-500.0,0.0001039,2]
[348358666,1736464256030,-500.0,0.0001039,2]
[348358667,1736464256039,-653.05,0.0001039,2]
[348358668,1736464256048,-1396.54,0.0001039,2]
[348358669,1736464256058,-713.08,0.0001039,2]
[348358670,1736464256067,-572.86,0.0001039,2]
[348358671,1736464256077,-500.0,0.0001039,2]
[348358672,1736464256086,-500.0,0.0001039,2]
[348358673,1736464256096,-500.0,0.0001039,2]
[348358674,1736464256105,-500.0,0.0001039,2]
[348358675,1736464256115,-981.79,0.0001039,2]
[348358676,1736464256124,-500.0,0.0001039,2]
[348358677,1736464256134,-1601.87,0.0001039,2]
[348358678,1736464256143,-500.0,0.0001039,2]
[348358679,1736464256152,-500.0,0.0001039,2]
[348358680,1736464256162,-728.25,0.0001039,2]
[348358681,1736464256171,-500.0,0.0001039,2]
[348358682,1736464256180,-500.0,0.0001039,2]
[348358683,1736464256190,-793.1,0.0001039,2]
[348358684,1736464256199,-500.0,0.0001039,2]
[348358685,1736464256208,-500.0,0.0001039,2]
[348358686,1736464256217,-683.34,0.0001039,2]
[348358687,1736464256227,-404.40527159,0.00010416,2]
[348358688,1736464256236,-952.95,0.0001043,2]
[348358689,1736464256245,-800.0,0.0001046,2]
[348358690,1736464256255,-218.95075136,0.00010476,2]
[348358691,1736464256264,-500.0,0.00010483,2]
[348358692,1736464256273,-500.0,0.00010544,2]
[348358693,1736464256283,-500.0,0.00010544,2]
[348358694,1736464256292,-500.0,0.00010544,2]
[348358695,1736464256301,-500.0,0.00010544,2]
[348358696,1736464256311,-700.2,0.00010544,2]
[348358697,1736464256320,-500.0,0.00010544,2]
[348358698,1736464256330,-500.0,0.00010544,2]
[348358699,1736464256339,-867.73,0.00010544,2]
[348358700,1736464256349,-500.0,0.00010544,2]
[348358701,1736464256358,-500.0,0.00010544,2]
[348358702,1736464256367,-500.0,0.00010544,2]
[348358703,1736464256377,-500.0,0.00010544,2]
[348358704,1736464256386,-500.0,0.00010544,2]
[348358705,1736464256395,-504.67,0.00010544,2]
[348358706,1736464256405,-500.0,0.00010544,2]
[348358707,1736464256414,-1142.97,0.00010544,2]
[348358708,1736464256423,-500.0,0.00010544,2]
[348358709,1736464256432,-500.0,0.00010544,2]
[348358710,1736464256441,-500.0,0.00010544,2]
[348358711,1736464256451,-500.0,0.00010544,2]
[348358712,1736464256460,-500.0,0.00010544,2]
[348358713,1736464256470,-500.0,0.00010544,2]
[348358714,1736464256479,-500.0,0.00010544,2]
[348358715,1736464256488,-500.0,0.00010544,2]
[348358716,1736464256497,-794.31,0.00010544,2]
[348358717,1736464256506,-500.0,0.00010544,2]
[348358718,1736464256515,-975.85,0.00010544,2]
[348358719,1736464256524,-500.0,0.00010544,2]
[348358720,1736464256533,-500.0,0.00010544,2]
[348358721,1736464256543,-728.84,0.00010544,2]
[348358722,1736464256552,-500.0,0.00010544,2]
[348358723,1736464256561,-982.11,0.00010544,2]
[348358724,1736464256570,-500.0,0.00010544,2]
[348358725,1736464256580,-500.0,0.00010544,2]
[348358726,1736464256592,-508.24,0.00010544,2]
[348358727,1736464256605,-500.0,0.00010544,2]
[348358728,1736464256617,-500.0,0.00010544,2]
[348358729,1736464256627,-500.0,0.00010544,2]
[348358730,1736464256636,-561.33,0.00010544,2]
[348358731,1736464256650,-500.0,0.00010544,2]
[348358732,1736464256661,-500.0,0.00010544,2]
[348358733,1736464256671,-500.0,0.00010544,2]
[348358734,1736464256681,-638.96,0.00010544,2]
[348358735,1736464256693,-1017.41,0.00010544,2]
[348358736,1736464256703,-500.0,0.00010544,2]
[348358737,1736464256713,-500.0,0.00010544,2]
[348358738,1736464256723,-833.34,0.00010544,2]
[348358739,1736464256733,-500.0,0.00010544,2]
[348358740,1736464256745,-500.0,0.00010544,2]
[348358741,1736464256755,-896.7,0.00010544,2]
[348358742,1736464256764,-500.0,0.00010544,2]
[348358743,1736464256775,-500.0,0.00010544,2]
[348358744,1736464256785,-500.0,0.00010545,2]
[348358745,1736464256796,-785.08,0.00010546,2]
[348358746,1736464256806,-519.36,0.00010546,2]
[348358747,1736464256816,-500.0,0.00010546,2]
[348358748,1736464256826,-500.0,0.00010546,2]
[348358749,1736464256835,-500.0,0.00010546,2]
[348358750,1736464256844,-1108.77,0.00010546,2]
[348358751,1736464256853,-541.64,0.00010546,2]
[348358752,1736464256862,-1006.73,0.00010546,2]
[348358753,1736464256872,-500.0,0.00010546,2]
[348358754,1736464256881,-1338.02,0.00010546,2]
[348358755,1736464256890,-500.0,0.00010546,2]
[348358756,1736464256901,-551.26,0.00010546,2]
[348358757,1736464256910,-500.0,0.00010546,2]
[348358758,1736464256923,-735.25,0.00010546,2]
[348358759,1736464256933,-500.0,0.00010546,2]
[348358760,1736464256944,-500.0,0.00010546,2]
[348358761,1736464256955,-500.0,0.00010546,2]
[348358762,1736464256964,-1826.03,0.00010546,2]
[348358763,1736464256974,-778.11,0.00010546,2]
[348358764,1736464256986,-1339.87,0.00010546,2]
[348358765,1736464256998,-218.95075136,0.00010603,2]
[348358766,1736464257008,-500.0,0.00010661,2]
[348358767,1736464257017,-993.08,0.00010661,2]
[348358768,1736464257029,-500.0,0.00010661,2]
[348358769,1736464257038,-617.62,0.00010661,2]
[348358770,1736464257047,-1339.91,0.00010662,2]
[348358771,1736464257058,-2278.81,0.00010662,2]
[348358772,1736464257067,-1459.99,0.00010662,2]
[348358773,1736464257077,-972.62,0.00010662,2]
[348358774,1736464257086,-1110.589587,0.00010662,2]
[348358775,1736464257097,-1157.05271,0.00010662,2]
[348358776,1736464257107,-2833.48,0.00010662,2]
[348358777,1736464257117,-1582.95,0.00010662,2]
[348358778,1736464257126,-624.77,0.00010662,2]
[348358779,1736464257136,-500.0,0.00010662,2]
[348358780,1736464257146,-500.0,0.00010662,2]
[348358781,1736464257155,-3780.45,0.00010662,2]
[348358782,1736464257166,-709.63,0.00010662,2]
[348358783,1736464257176,-1351.09,0.00010662,2]
[348358784,1736464257186,-1032.34,0.00010662,2]
[348358785,1736464257196,-548.37,0.00010662,2]
[348358786,1736464257207,-500.0,0.00010662,2]
[348358787,1736464257217,-500.0,0.00010662,2]
[348358788,1736464257228,-500.0,0.00010662,2]
[348358789,1736464257239,-500.0,0.00010662,2]
[348358790,1736464257251,-150.803734,0.00010662,2]
[348358791,1736464257260,-762.07,0.00010662,2]
[348358792,1736464257269,-607.1,0.00010662,2]
[348358793,1736464257278,-500.0,0.00010662,2]
[348358794,1736464257287,-500.0,0.00010662,2]
[348358795,1736464257296,-500.0,0.00010662,2]
[348358796,1736464257305,-500.0,0.00010662,2]
[348358797,1736464257315,-500.0,0.00010662,2]
[348358798,1736464257326,-737.67,0.00010662,2]
[348358799,1736464257336,-500.0,0.00010662,2]
[348358800,1736464257345,-500.0,0.00010662,2]
[348358801,1736464257354,-500.0,0.00010662,2]
[348358802,1736464257363,-926.14,0.00010662,2]
[348358803,1736464257372,-541.82,0.00010662,2]
[348358804,1736464257382,-500.0,0.00010662,2]
[348358805,1736464257392,-600.17,0.00010662,2]
[348358806,1736464257401,-767.02,0.00010662,2]
[348358807,1736464257413,-2079.27,0.00010662,2]
[348358808,1736464257425,-768.23,0.00010662,2]
[348358809,1736464257437,-500.0,0.00010662,2]
[348358810,1736464257449,-886.94,0.00010662,2]
[348358811,1736464257460,-500.0,0.00010662,2]
[348358812,1736464257472,-500.0,0.00010662,2]
[348358813,1736464257483,-537.95,0.00010662,2]
[348358814,1736464257494,-500.0,0.00010662,2]
[348358815,1736464257506,-1299.47,0.00010662,2]
[348358816,1736464257517,-506.79,0.00010662,2]
[348358817,1736464257528,-755.46,0.00010662,2]
[348358818,1736464257538,-500.0,0.00010662,2]
[348358819,1736464257547,-500.0,0.00010662,2]
[348358820,1736464257558,-533.03,0.00010662,2]
[348358821,1736464257567,-1778.0,0.00010662,2]
[348358822,1736464257576,-500.0,0.00010662,2]
[348358823,1736464257587,-500.0,0.00010662,2]
[348358824,1736464257598,-500.0,0.00010662,2]
[348358825,1736464257610,-654.69,0.00010662,2]
[348358826,1736464257620,-500.0,0.00010662,2]
[348358827,1736464257631,-1299.64,0.00010662,2]
[348358828,1736464257642,-154.36322553,0.00010662,2]
[348358829,1736464257655,-500.0,0.00010662,2]
[348358830,1736464257666,-669.53,0.00010662,2]
[348358831,1736464257675,-878.17,0.00010662,2]
[348358832,1736464257688,-746.31,0.00010662,2]
[348358833,1736464257699,-2825.53,0.00010662,2]
[348358834,1736464257708,-500.0,0.00010662,2]
[348358835,1736464257718,-500.0,0.00010662,2]
[348358836,1736464257729,-500.0,0.00010662,2]
[348358837,1736464257738,-500.0,0.00010662,2]
[348358838,1736464257748,-1370.91,0.00010662,2]
[348358839,1736464257759,-500.0,0.00010662,2]
[348358840,1736464257769,-509.67,0.00010662,2]
[348358841,1736464257778,-500.0,0.00010662,2]
[348358842,1736464257787,-1016.91,0.00010662,2]
[348358843,1736464257796,-5530.79,0.00010662,2]
[348358844,1736464257806,-893.55,0.00010662,2]
[348358845,1736464257816,-1024.58,0.00010662,2]
[348358846,1736464257825,-3300.0,0.00010662,2]
[348358847,1736464257836,-513.0,0.00010662,2]
[348358848,1736464257846,-500.0,0.00010662,2]
[348358849,1736464257856,-568.54,0.00010662,2]
[348358850,1736464257866,-1679.97,0.00010662,2]
[348358851,1736464257877,-500.0,0.00010662,2]
[348358852,1736464257886,-500.0,0.00010662,2]
[348358853,1736464257896,-1225.86,0.00010662,2]
[348358854,1736464257905,-3498.36,0.00010662,2]
[348358855,1736464257916,-9763.1,0.00010662,2]
[348358856,1736464257927,-637.7,0.00010662,2]
[348358857,1736464257937,-500.0,0.00010662,2]
[348358858,1736464257947,-500.0,0.00010662,2]
[348358859,1736464257956,-1383.75,0.00010662,2]
[348358860,1736464257965,-1394.24,0.00010662,2]
[348358861,1736464257975,-570.03,0.00010662,2]
[348358862,1736464257984,-1197.12,0.00010662,2]
[348358863,1736464257993,-1383.77,0.00010662,2]
[348358864,1736464258002,-1806.31,0.00010662,2]
[348358865,1736464258011,-791.51,0.00010662,2]
[348358866,1736464258020,-2302.39,0.00010662,2]
[348358867,1736464258029,-601.46,0.00010662,2]
[348358868,1736464258101,-3880.27,0.00010662,2]
[348358869,1736464258111,-500.0,0.00010662,2]
[348358870,1736464258120,-1263.19,0.00010662,2]
[348358871,1736464258129,-500.0,0.00010662,2]
[348358872,1736464258139,-555.45,0.00010662,2]
[348358873,1736464258148,-2255.87,0.00010662,2]
[348358874,1736464258156,-4315.7,0.00010662,2]
[348358875,1736464258166,-1855.94,0.00010662,2]
[348358876,1736464258175,-2919.4,0.00010662,2]
[348358877,1736464258185,-1352.34,0.00010662,2]
[348358878,1736464258197,-510.67,0.00010662,2]
[348358879,1736464258207,-1015.51,0.00010662,2]
[348358880,1736464258218,-500.0,0.00010662,2]
[348358881,1736464258228,-2079.95,0.00010662,2]
[348358882,1736464258239,-802.81,0.00010662,2]
[348358883,1736464258247,-979.65,0.00010662,2]
[348358884,1736464258257,-500.0,0.00010662,2]
[348358885,1736464258267,-2536.25,0.00010662,2]
[348358886,1736464258276,-1867.01,0.00010662,2]
[348358887,1736464258285,-650.79,0.00010662,2]
[348358888,1736464258294,-607.35,0.00010662,2]
[348358889,1736464258303,-2025.45,0.00010662,2]
[348358890,1736464258313,-3793.75,0.00010662,2]
[348358891,1736464258322,-1584.97,0.00010662,2]
[348358892,1736464258331,-7385.22,0.00010662,2]
[348358893,1736464258341,-500.0,0.00010662,2]
[348358894,1736464258351,-925.08,0.00010662,2]
[348358895,1736464258360,-619.92,0.00010662,2]
[348358896,1736464258370,-500.0,0.00010662,2]
[348358897,1736464258379,-500.0,0.00010662,2]
[348358898,1736464258388,-1428.05,0.00010662,2]
[348358899,1736464258397,-500.0,0.00010662,2]
[348358900,1736464258407,-500.0,0.00010662,2]
[348358901,1736464258416,-500.0,0.00010662,2]
[348358902,1736464258426,-500.0,0.00010662,2]
[348358903,1736464258435,-631.73,0.00010662,2]
[348358904,1736464258444,-1111.88,0.00010662,2]
[348358905,1736464258454,-2376.81,0.00010662,2]
[348358906,1736464258463,-962.16,0.00010662,2]
[348358907,1736464258473,-1842.8,0.00010662,2]
[348358908,1736464258482,-1011.89,0.00010662,2]
[348358909,1736464258491,-809.81,0.00010662,2]
[348358910,1736464258501,-1412.7,0.00010662,2]
[348358911,1736464258510,-500.0,0.00010662,2]
[348358912,1736464258519,-500.0,0.00010662,2]
[348358913,1736464258528,-1113.45,0.00010662,2]
[348358914,1736464258537,-500.0,0.00010663,2]
[348358915,1736464258546,-500.0,0.00010663,2]
[348358916,1736464258555,-500.0,0.00010663,2]
[348358917,1736464258564,-500.0,0.00010663,2]
[348358918,1736464258573,-500.0,0.00010663,2]
[348358919,1736464258583,-500.0,0.00010663,2]
[348358920,1736464258592,-500.0,0.00010663,2]
[348358921,1736464258601,-500.0,0.00010663,2]
[348358922,1736464258614,-500.0,0.00010663,2]
[348358923,1736464258623,-500.0,0.00010663,2]
[348358924,1736464258632,-500.0,0.00010663,2]
[348358925,1736464258644,-500.0,0.00010663,2]
[348358926,1736464258654,-510.94,0.00010663,2]
[348358927,1736464258663,-428.17401347,0.00010663,2]
[348358928,1736464258673,-541.38,0.00010663,2]
[348358929,1736464258684,-500.0,0.00010663,2]
[348358930,1736464258693,-500.0,0.00010663,2]
[348358931,1736464258702,-500.0,0.00010663,2]
[348358932,1736464258712,-500.0,0.00010663,2]
[348358933,1736464258721,-500.0,0.00010663,2]
[348358934,1736464258732,-500.0,0.00010663,2]
[348358935,1736464258742,-500.0,0.00010663,2]
[348358936,1736464258752,-620.87,0.00010663,2]
[348358937,1736464258762,-680.81,0.00010663,2]
[348358938,1736464258774,-500.0,0.00010663,2]
[348358939,1736464258784,-500.0,0.00010663,2]
[348358940,1736464258796,-500.0,0.00010663,2]
[348358941,1736464258806,-500.0,0.00010663,2]
[348358942,1736464258816,-500.0,0.00010663,2]